fUSD/lending_fUSD_20250124
["ID","MTS","AMOUNT","RATE_DAILY","PERIOD"]
[350210351,1737694231538,-336.50062,0.00016567,2]
[350210352,1737694231647,-278.17938,0.00016567,2]
[350210353,1737694231657,-246.05,0.00016813,2]
[350210354,1737694231666,-152.15,0.0001796,2]
[350210355,1737694231675,-308.5,0.00018045,2]
[350210356,1737694231686,-918.13,0.00018092,2]
[350210357,1737694231695,-498.55,0.00018162,2]
[350210358,1737694231703,-434.66,0.00018215,2]
[350210359,1737694231712,-169.77,0.00018247,2]
[350210360,1737694231722,-106.54930839,0.000183,2]
[350210361,1737694231734,-989.11635142,0.000183,2]
[350210362,1737694231743,-173.05,0.0001835,2]
[350210363,1737694231752,-30.37293775,0.00018394,2]
[350210364,1737694231763,-219.62706225,0.00018394,2]
[350210365,1737694231772,-250.0,0.00018461,2]
[350210366,1737694231781,-30.37293775,0.0001851,2]
[350210367,1737694231792,-579.36353194,0.0001851,2]
[350210368,1737694231804,-397.92779334,0.0001851,2]
[350210369,1737694231819,-2992.33573697,0.0001851,2]
[350210370,1737694231828,-1000.0,0.00018524,2]
[350210371,1737694231838,-999.99,0.00018533,2]
[350210372,1737694231847,-1076.91,0.00018533,2]
[350210373,1737694231856,-9999.99,0.00018533,2]
[350210374,1737694231866,-150.99,0.00018533,2]
[350210375,1737694231875,-298.15,0.00018678,2]
[350210376,1737694231884,-875.16,0.00018712,2]
[350210377,1737694231893,-437.93,0.00018712,2]
[350210378,1737694231903,-37.25403877,0.00018712,2]
[350210379,1737694231929,-262.74596123,0.00018712,2]
[350210380,1737694231942,-150.0,0.00018712,2]
[350210381,1737694231951,-282.80389284,0.00018712,2]
[350210382,1737694231962,-155.12610716,0.00018712,2]
[350210383,1737694231971,-150.0,0.00018712,2]
[350210384,1737694231981,-111.91389284,0.00018799,2]
[350210385,1737694232029,-795.6068147,0.00018799,2]
[350210387,1737694232039,-1196.969,0.00018831,2]
[350210389,1737694232049,-614.68,0.00018831,2]
[350210391,1737694232058,-152.15,0.00018858,2]
[350210393,1737694232067,-254.18508509,0.00018899,2]
[350210395,1737694232076,-500.0,0.00018899,2]
[350210396,1737694232086,-500.0,0.00018899,2]
[350210397,1737694232095,-490.60216586,0.00018899,2]
[350210398,1737694232104,-500.0,0.00018899,2]
[350210399,1737694232112,-500.0,0.00018899,2]
[350210400,1737694232122,-509.50121852,0.00018899,2]
[350210401,1737694232131,-500.0,0.00018899,2]
[350210402,1737694232140,-526.6330868,0.00018899,2]
[350210403,1737694232149,-500.0,0.00018899,2]
[350210404,1737694232158,-500.0,0.00018899,2]
[350210405,1737694232167,-500.0,0.00018899,2]
[350210406,1737694232175,-500.0,0.00018899,2]
[350210407,1737694232185,-562.85290446,0.00018899,2]
[350210408,1737694232194,-500.0,0.00018899,2]
[350210409,1737694232203,-500.0,0.00018899,2]
[350210410,1737694232213,-500.0,0.00018899,2]
[350210411,1737694232222,-510.94078003,0.00018899,2]
[350210412,1737694232234,-500.0,0.00018899,2]
[350210413,1737694232243,-500.0,0.00018899,2]
[350210414,1737694232253,-192.49342311,0.00018899,2]
[350210415,1737694232262,-500.0,0.00018899,2]
[350210416,1737694232271,-500.0,0.00018899,2]
[350210417,1737694232281,-500.0,0.00018899,2]
[350210418,1737694232290,-500.0,0.00018899,2]
[350210419,1737694232299,-500.0,0.00018899,2]
[350210420,1737694232310,-500.0,0.00018899,2]
[350210421,1737694232320,-500.0,0.00018899,2]
[350210422,1737694232329,-500.0,0.00018899,2]
[350210423,1737694232338,-500.0,0.00018899,2]
[350210424,1737694232347,-513.45714013,0.00018899,2]
[350210425,1737694232356,-500.0,0.00018899,2]
[350210426,1737694232365,-505.55723175,0.00018899,2]
[350210427,1737694232374,-474.19959691,0.00018899,2]
[350210428,1737694232383,-509.80084483,0.00018899,2]
[350210429,1737694232393,-500.0,0.00018899,2]
[350210430,1737694232402,-500.0,0.00018899,2]
[350210431,1737694232411,-500.0,0.00018899,2]
[350210432,1737694232420,-511.0577799,0.00018899,2]
[350210433,1737694232429,-500.0,0.00018899,2]
[350210434,1737694232440,-500.0,0.00018899,2]
[350210435,1737694232449,-500.0,0.00018899,2]
[350210436,1737694232459,-507.20911491,0.00018899,2]
[350210437,1737694232468,-500.0,0.00018899,2]
[350210438,1737694232477,-500.0,0.00018899,2]
[350210439,1737694232486,-500.0,0.00018899,2]
[350210440,1737694232495,-500.0,0.00018899,2]
[350210441,1737694232505,-543.40551379,0.00018899,2]
[350210442,1737694232514,-516.09264063,0.00018899,2]
[350210443,1737694232523,-500.0,0.00018899,2]
[350210444,1737694232532,-512.53056353,0.00018899,2]
[350210445,1737694232541,-500.0,0.00018899,2]
[350210446,1737694232550,-500.0,0.00018899,2]
[350210447,1737694232559,-500.0,0.00018899,2]
[350210448,1737694232568,-500.0,0.00018899,2]
[350210449,1737694232577,-509.32527685,0.00018899,2]
[350210450,1737694232586,-500.0,0.00018899,2]
[350210451,1737694232596,-500.0,0.00018899,2]
[350210452,1737694232606,-500.0,0.00018899,2]
[350210453,1737694232615,-500.0,0.00018899,2]
[350210454,1737694232624,-500.0,0.00018899,2]
[350210455,1737694232633,-500.0,0.00018899,2]
[350210456,1737694232642,-500.0,0.00018899,2]
[350210457,1737694232651,-500.69060926,0.00018899,2]
[350210458,1737694232660,-374.18483422,0.00018899,2]
[350210459,1737694232668,-500.0,0.00018899,2]
[350210460,1737694232849,-500.0,0.00018899,2]
[350210461,1737694232858,-500.0,0.00018899,2]
[350210462,1737694232867,-500.0,0.00018899,2]
[350210463,1737694232876,-500.0,0.00018899,2]
[350210464,1737694232885,-500.0,0.00018899,2]
[350210465,1737694232894,-500.0,0.00018899,2]
[350210466,1737694232903,-500.0,0.00018899,2]
[350210467,1737694232912,-500.0,0.00018899,2]
[350210468,1737694232921,-500.0,0.00018899,2]
[350210469,1737694232930,-510.63405117,0.00018899,2]
[350210470,1737694232942,-500.0,0.00018899,2]
[350210471,1737694232951,-500.0,0.00018899,2]
[350210472,1737694232960,-357.40318978,0.00018899,2]
[350210473,1737694232969,-500.0,0.00018899,2]
[350210474,1737694232978,-500.0,0.00018899,2]
[350210475,1737694232987,-500.0,0.00018899,2]
[350210476,1737694232996,-500.0,0.00018899,2]
[350210477,1737694233006,-500.0,0.00018899,2]
[350210478,1737694233015,-500.0,0.00018899,2]
[350210479,1737694233026,-500.0,0.00018899,2]
[350210480,1737694233035,-500.0,0.00018899,2]
[350210481,1737694233044,-500.0,0.00018899,2]
[350210482,1737694233054,-500.0,0.00018899,2]
[350210483,1737694233064,-500.0,0.00018899,2]
[350210484,1737694233073,-500.0,0.00018899,2]
[350210485,1737694233082,-500.0,0.00018899,2]
[350210486,1737694233091,-625.4832755,0.00018899,2]
[350210487,1737694233100,-500.0,0.00018899,2]
[350210488,1737694233110,-500.0,0.00018899,2]
[350210489,1737694233119,-500.0,0.00018899,2]
[350210490,1737694233127,-500.0,0.00018899,2]
[350210491,1737694233137,-509.90219908,0.00018899,2]
[350210492,1737694233145,-500.0,0.00018899,2]
[350210493,1737694233154,-500.0,0.00018899,2]
[350210494,1737694233163,-500.0,0.00018899,2]
[350210495,1737694233172,-500.0,0.00018899,2]
[350210496,1737694233181,-500.0,0.00018899,2]
[350210497,1737694233194,-500.0,0.00018899,2]
[350210498,1737694233203,-500.0,0.00018899,2]
[350210499,1737694233212,-500.0,0.00018899,2]
[350210500,1737694233225,-500.0,0.00018899,2]
[350210501,1737694233234,-500.0,0.00018899,2]
[350210502,1737694233243,-500.0,0.00018899,2]
[350210503,1737694233252,-500.0,0.00018899,2]
[350210504,1737694233262,-508.02290392,0.00018899,2]
[350210505,1737694233271,-500.0,0.00018899,2]
[350210506,1737694233280,-500.0,0.00018899,2]
[350210507,1737694233289,-500.0,0.00018899,2]
[350210508,1737694233298,-500.0,0.00018899,2]
[350210509,1737694233308,-500.0,0.00018899,2]
[350210510,1737694233318,-500.0,0.00018899,2]
[350210511,1737694233328,-500.0,0.00018899,2]
[350210512,1737694233338,-500.0,0.00018899,2]
[350210513,1737694233347,-500.0,0.00018899,2]
[350210514,1737694233356,-500.0,0.00018899,2]
[350210515,1737694233365,-500.0,0.00018899,2]
[350210516,1737694233374,-500.0,0.00018899,2]
[350210517,1737694233384,-500.0,0.00018899,2]
[350210518,1737694233394,-500.0,0.00018899,2]
[350210519,1737694233403,-500.0,0.00018899,2]
[350210520,1737694233413,-500.0,0.00018899,2]
[350210521,1737694233422,-500.0,0.00018899,2]
[350210522,1737694233431,-500.0,0.00018899,2]
[350210523,1737694233442,-500.0,0.00018899,2]
[350210524,1737694233451,-500.0,0.00018899,2]
[350210525,1737694233460,-500.0,0.00018899,2]
[350210526,1737694233469,-500.0,0.00018899,2]
[350210527,1737694233479,-516.08308394,0.00018899,2]
[350210528,1737694233488,-500.0,0.00018899,2]
[350210529,1737694233498,-500.0,0.00018899,2]
[350210530,1737694233507,-500.0,0.00018899,2]
[350210531,1737694233525,-500.0,0.00018899,2]
[350210532,1737694233537,-500.0,0.00018899,2]
[350210533,1737694233547,-500.0,0.00018899,2]
[350210534,1737694233557,-500.0,0.00018899,2]
[350210535,1737694233567,-500.0,0.00018899,2]
[350210536,1737694233577,-500.0,0.00018899,2]
[350210537,1737694233588,-500.0,0.00018899,2]
[350210538,1737694233598,-500.0,0.00018899,2]
[350210539,1737694233607,-500.3233706,0.00018899,2]
[350210540,1737694233618,-500.0,0.00018899,2]
[350210541,1737694233628,-500.0,0.00018899,2]
[350210542,1737694233638,-500.0,0.00018899,2]
[350210543,1737694233648,-500.0,0.00018899,2]
[350210544,1737694233657,-500.0,0.00018899,2]
[350210545,1737694233667,-500.0,0.00018899,2]
[350210546,1737694233677,-500.0,0.00018899,2]
[350210547,1737694233688,-500.0,0.00018899,2]
[350210548,1737694233698,-500.0,0.00018899,2]
[350210549,1737694233708,-500.0,0.00018899,2]
[350210550,1737694233718,-500.0,0.00018899,2]
[350210551,1737694233728,-500.0,0.00018899,2]
[350210552,1737694233738,-500.0,0.00018899,2]
[350210553,1737694233748,-500.0,0.00018899,2]
[350210554,1737694233758,-500.0,0.00018899,2]
[350210555,1737694233768,-500.0,0.00018899,2]
[350210556,1737694233778,-220.35753456,0.00018899,2]
[350210557,1737694233787,-360.10185616,0.00018899,2]
[350210558,1737694233797,-500.0,0.00018899,2]
[350210559,1737694233807,-500.60805406,0.00018899,2]
[350210560,1737694233818,-500.0,0.00018899,2]
[350210561,1737694233828,-500.0,0.00018899,2]
[350210562,1737694233838,-500.0,0.00018899,2]
[350210563,1737694233848,-500.0,0.00018899,2]
[350210564,1737694233858,-500.0,0.00018899,2]
[350210565,1737694233867,-500.0,0.00018899,2]
[350210566,1737694233877,-500.0,0.00018899,2]
[350210567,1737694233887,-505.54392429,0.00018899,2]
[350210568,1737694233897,-500.0,0.00018899,2]
[350210569,1737694233907,-500.0,0.00018899,2]
[350210570,1737694233917,-500.0,0.00018899,2]
[350210571,1737694233927,-500.0,0.00018899,2]
[350210572,1737694233939,-500.0,0.00018899,2]
[350210573,1737694233949,-437.93,0.000189,2]
[350210574,1737694233959,-150.0,0.000189,2]
[350210575,1737694233969,-150.0,0.000189,2]
[350210576,1737694233979,-302.56,0.000189,2]
[350210577,1737694233989,-302.75,0.000189,2]
[350210578,1737694233999,-150.0,0.000189,2]
[350210579,1737694234009,-437.93,0.000189,2]
[350210580,1737694234019,-150.0,0.000189,2]
[350210581,1737694234029,-437.93,0.000189,2]
[350210582,1737694234040,-300.0,0.000189,2]
[350210583,1737694234050,-150.0,0.000189,2]
[350210584,1737694234060,-437.93,0.000189,2]
[350210585,1737694234070,-150.0,0.000189,2]
[350210586,1737694234079,-300.0,0.000189,2]
[350210587,1737694234089,-907.52070754,0.00018919,2]
[350210588,1737694234099,-636.0,0.00019003,2]
[350210589,1737694234108,-150.0,0.00019003,2]
[350210590,1737694234118,-567.0,0.00019003,2]
[350210591,1737694234127,-1865.0,0.00019003,2]
[350210592,1737694234137,-782.0,0.00019003,2]
[350210593,1737694234147,-2949.0,0.00019003,2]
[350210594,1737694234156,-533.907,0.00019003,2]
[350210595,1737694234166,-2950.616,0.00019003,2]
[350210596,1737694234175,-150.0,0.00019003,2]
[350210597,1737694234185,-907.52070754,0.00019039,2]
[350210598,1737694234195,-287.07,0.00019052,2]
[350210599,1737694234205,-150.0,0.00019052,2]
[350210600,1737694234214,-150.0,0.00019052,2]
[350210601,1737694234225,-150.0,0.00019052,2]
[350210602,1737694234238,-1315.6995667,0.0001911,2]
[350210603,1737694234247,-907.52070754,0.00019159,2]
[350210604,1737694234257,-454.65,0.00019162,2]
[350210605,1737694234267,-700.0,0.00019164,2]
[350210606,1737694234277,-500.0,0.00019164,2]
[350210607,1737694234286,-500.0,0.0001917,2]
[350210608,1737694234295,-500.0,0.0001917,2]
[350210609,1737694234305,-500.0,0.0001917,2]
[350210610,1737694234315,-500.0,0.0001917,2]
[350210611,1737694234326,-615.14,0.0001917,2]
[350210612,1737694234335,-500.0,0.0001917,2]
[350210613,1737694234345,-636.02,0.0001917,2]
[350210614,1737694234355,-1235.08,0.0001917,2]
[350210615,1737694234364,-1119.09,0.0001917,2]
[350210616,1737694234373,-500.0,0.0001917,2]
[350210617,1737694234383,-2175.57,0.0001917,2]
[350210618,1737694234392,-500.0,0.0001917,2]
[350210619,1737694234402,-500.0,0.0001917,2]
[350210620,1737694234411,-684.47,0.0001917,2]
[350210621,1737694234421,-500.0,0.0001917,2]
[350210622,1737694234431,-500.0,0.0001917,2]
[350210623,1737694234442,-500.0,0.0001917,2]
[350210624,1737694234452,-506.66440515,0.0001917,2]
[350210625,1737694234462,-500.0,0.0001917,2]
[350210626,1737694234472,-500.0,0.0001917,2]
[350210627,1737694234482,-500.0,0.00019171,2]
[350210628,1737694234492,-500.0,0.00019171,2]
[350210629,1737694234502,-500.0,0.00019171,2]
[350210630,1737694234512,-500.0,0.00019171,2]
[350210631,1737694234521,-500.0,0.00019171,2]
[350210632,1737694234531,-352.08496145,0.00019171,2]
[350210633,1737694234541,-500.0,0.00019171,2]
[350210634,1737694234550,-500.0,0.00019171,2]
[350210635,1737694234560,-500.0,0.00019171,2]
[350210636,1737694234569,-500.0,0.00019171,2]
[350210637,1737694234579,-500.0,0.00019171,2]
[350210638,1737694234588,-500.0,0.00019171,2]
[350210639,1737694234598,-500.0,0.00019171,2]
[350210640,1737694234608,-500.0,0.00019171,2]
[350210641,1737694234617,-500.0,0.00019171,2]
[350210642,1737694234627,-500.0,0.00019171,2]
[350210643,1737694234636,-500.0,0.00019171,2]
[350210644,1737694234646,-500.0,0.00019171,2]
[350210645,1737694234656,-500.0,0.00019171,2]
[350210646,1737694234665,-500.0,0.00019171,2]
[350210647,1737694234675,-500.0,0.00019171,2]
[350210648,1737694234686,-194.83362128,0.00019171,2]
[350210649,1737694234695,-532.5995763,0.00019171,2]
[350210650,1737694234705,-500.0,0.00019171,2]
[350210651,1737694234714,-500.0,0.00019171,2]
[350210652,1737694234723,-500.0,0.00019171,2]
[350210653,1737694234733,-371.352838,0.00019171,2]
[350210654,1737694234743,-500.0,0.00019171,2]
[350210655,1737694234752,-500.0,0.00019171,2]
[350210656,1737694234762,-500.0,0.00019171,2]
[350210657,1737694234771,-500.0,0.00019171,2]
[350210658,1737694234780,-500.0,0.00019171,2]
[350210659,1737694234790,-500.0,0.00019171,2]
[350210660,1737694234799,-500.0,0.00019171,2]
[350210661,1737694234808,-681.92,0.00019171,2]
[350210662,1737694234817,-200.0,0.00019171,2]
[350210663,1737694234827,-532.25,0.00019171,2]
[350210664,1737694234836,-306.154216,0.00019171,2]
[350210665,1737694234846,-1190.28,0.00019171,2]
[350210666,1737694234855,-500.0,0.00019171,2]
[350210667,1737694234863,-703.29,0.00019171,2]
[350210668,1737694234872,-500.0,0.00019171,2]
[350210669,1737694234880,-158.572567,0.00019171,2]
[350210670,1737694234890,-433.5518069,0.00019171,2]
[350210671,1737694234899,-500.0,0.00019171,2]
[350210672,1737694234909,-500.0,0.00019171,2]
[350210673,1737694234918,-500.0,0.00019171,2]
[350210674,1737694234928,-500.0,0.00019171,2]
[350210675,1737694234938,-1122.39,0.00019171,2]
[350210676,1737694234948,-500.0,0.00019171,2]
[350210677,1737694234957,-500.0,0.00019171,2]
[350210678,1737694234966,-1409.58,0.00019171,2]
[350210679,1737694234976,-1360.48,0.00019171,2]
[350210680,1737694234985,-500.0,0.00019171,2]
[350210681,1737694234994,-500.0,0.00019171,2]
[350210682,1737694235003,-500.0,0.00019171,2]
[350210683,1737694235012,-500.0,0.00019171,2]
[350210684,1737694235022,-500.0,0.00019171,2]
[350210685,1737694235031,-500.0,0.00019171,2]
[350210686,1737694235040,-505.76185655,0.00019171,2]
[350210687,1737694235049,-1096.64,0.00019171,2]
[350210688,1737694235059,-611.04,0.00019171,2]
[350210689,1737694235068,-500.0,0.00019171,2]
[350210690,1737694235077,-500.0,0.00019171,2]
[350210691,1737694235087,-500.0,0.00019171,2]
[350210692,1737694235096,-1401.57,0.00019171,2]
[350210693,1737694235105,-500.0,0.00019171,2]
[350210694,1737694235114,-199.94559965,0.00019171,2]
[350210695,1737694235124,-500.0,0.00019171,2]
[350210696,1737694235134,-500.0,0.00019171,2]
[350210697,1737694235143,-508.38923921,0.00019171,2]
[350210698,1737694235154,-500.0,0.00019171,2]
[350210699,1737694235163,-500.0,0.00019171,2]
[350210700,1737694235173,-500.0,0.00019171,2]
[350210701,1737694235182,-831.08,0.00019171,2]
[350210702,1737694235193,-500.0,0.00019171,2]
[350210703,1737694235202,-581.43108793,0.00019171,2]
[350210704,1737694235211,-500.0,0.00019171,2]
[350210705,1737694235221,-500.0,0.00019171,2]
[350210706,1737694235234,-500.0,0.00019171,2]
[350210707,1737694235243,-502.84641666,0.00019171,2]
[350210708,1737694235252,-500.0,0.00019171,2]
[350210709,1737694235263,-500.0,0.00019171,2]
[350210710,1737694235272,-500.0,0.00019171,2]
[350210711,1737694235281,-500.0,0.00019171,2]
[350210712,1737694235290,-500.0,0.00019171,2]
[350210713,1737694235300,-500.0,0.00019171,2]
[350210714,1737694235309,-500.0,0.00019171,2]
[350210715,1737694235318,-500.0,0.00019171,2]
[350210716,1737694235328,-500.0,0.00019171,2]
[350210717,1737694235337,-500.0,0.00019171,2]
[350210718,1737694235346,-500.0,0.00019171,2]
[350210719,1737694235355,-500.0,0.00019171,2]
[350210720,1737694235364,-500.0,0.00019171,2]
[350210721,1737694235373,-500.0,0.00019171,2]
[350210722,1737694235382,-501.83046911,0.00019171,2]
[350210723,1737694235392,-850.5,0.00019171,2]
[350210724,1737694235401,-500.0,0.00019171,2]
[350210725,1737694235410,-945.22,0.00019171,2]
[350210726,1737694235420,-500.0,0.00019171,2]
[350210727,1737694235429,-500.0,0.00019171,2]
[350210728,1737694235441,-500.0,0.00019171,2]
[350210729,1737694235450,-500.0,0.00019171,2]
[350210730,1737694235460,-504.48362804,0.00019171,2]
[350210731,1737694235470,-666.81,0.00019171,2]
[350210732,1737694235479,-500.0,0.00019171,2]
[350210733,1737694235488,-511.36687949,0.00019171,2]
[350210734,1737694235498,-586.24,0.00019171,2]
[350210735,1737694235507,-503.78184481,0.00019171,2]
[350210736,1737694235516,-500.0,0.00019171,2]
[350210737,1737694235526,-500.0,0.00019171,2]
[350210738,1737694235535,-500.0,0.00019171,2]
[350210739,1737694235545,-500.0,0.00019171,2]
[350210740,1737694235555,-500.0,0.00019171,2]
[350210741,1737694235564,-500.0,0.00019171,2]
[350210742,1737694235573,-500.0,0.00019171,2]
[350210743,1737694235582,-500.0,0.00019171,2]
[350210744,1737694235591,-500.0,0.00019171,2]
[350210745,1737694235600,-500.0,0.00019171,2]
[350210746,1737694235609,-500.0,0.00019171,2]
[350210747,1737694235618,-509.88287571,0.00019171,2]
[350210748,1737694235627,-500.0,0.00019171,2]
[350210749,1737694235636,-502.10583995,0.00019171,2]
[350210750,1737694235646,-500.0,0.00019171,2]
[350210751,1737694235655,-500.0,0.00019171,2]
[350210752,1737694235664,-503.77931093,0.00019171,2]
[350210753,1737694235673,-500.0,0.00019171,2]
[350210754,1737694235683,-321.71433281,0.00019171,2]
[350210755,1737694235876,-181.59247224,0.00019171,2]
[350210756,1737694235886,-500.0,0.00019171,2]
[350210757,1737694235895,-1307.37,0.00019171,2]
[350210758,1737694235905,-544.25,0.00019171,2]
[350210759,1737694235914,-443.52689301,0.00019171,2]
[350210760,1737694235924,-504.3293942,0.00019171,2]
[350210761,1737694235933,-1570.85,0.00019171,2]
[350210762,1737694235945,-518.6711526,0.00019171,2]
[350210763,1737694235955,-503.88021388,0.00019171,2]
[350210764,1737694235964,-500.0,0.00019171,2]
[350210765,1737694235973,-515.24685928,0.00019171,2]
[350210766,1737694235983,-500.0,0.00019171,2]
[350210767,1737694235992,-500.0,0.00019171,2]
[350210768,1737694236001,-500.0,0.00019171,2]
[350210769,1737694236011,-500.0,0.00019171,2]
[350210770,1737694236020,-500.0,0.00019171,2]
[350210771,1737694236030,-501.9690377,0.00019171,2]
[350210772,1737694236039,-500.0,0.00019171,2]
[350210773,1737694236048,-503.83139423,0.00019171,2]
[350210774,1737694236058,-535.56454533,0.00019171,2]
[350210775,1737694236068,-500.0,0.00019171,2]
[350210776,1737694236077,-764.3,0.00019171,2]
[350210777,1737694236086,-508.13760309,0.00019171,2]
[350210778,1737694236095,-956.32,0.00019171,2]
[350210779,1737694236105,-500.0,0.00019171,2]
[350210780,1737694236270,-500.0,0.00019171,2]
[350210781,1737694236279,-500.0,0.00019171,2]
[350210782,1737694236292,-514.19791576,0.00019171,2]
[350210783,1737694236302,-950.88,0.00019171,2]
[350210784,1737694236311,-500.0,0.00019171,2]
[350210785,1737694236321,-256.46849379,0.00019171,2]
[350210786,1737694236333,-704.75150621,0.00019171,2]
[350210787,1737694236342,-505.76700959,0.00019171,2]
[350210788,1737694236352,-500.0,0.00019171,2]
[350210789,1737694236361,-519.26,0.00019171,2]
[350210790,1737694236370,-500.0,0.00019171,2]
[350210791,1737694236379,-500.0,0.00019171,2]
[350210792,1737694236388,-500.0,0.00019171,2]
[350210793,1737694236397,-500.0,0.00019171,2]
[350210794,1737694236407,-500.0,0.00019171,2]
[350210795,1737694236416,-980.1,0.00019171,2]
[350210796,1737694236426,-500.0,0.00019171,2]
[350210797,1737694236435,-500.0,0.00019172,2]
[350210798,1737694236446,-500.0,0.00019172,2]
[350210799,1737694236455,-500.0,0.00019172,2]
[350210800,1737694236464,-500.0,0.00019172,2]
[350210801,1737694236474,-242.19,0.00019172,2]
[350210802,1737694236483,-500.0,0.00019172,2]
[350210803,1737694236492,-500.0,0.00019172,2]
[350210804,1737694236501,-366.43718694,0.00019172,2]
[350210805,1737694236510,-157.83,0.00019172,2]
[350210806,1737694236519,-500.0,0.00019172,2]
[350210807,1737694236528,-500.0,0.00019172,2]
[350210808,1737694236537,-500.0,0.00019172,2]
[350210809,1737694236546,-500.0,0.00019172,2]
[350210810,1737694236555,-500.0,0.00019172,2]
[350210811,1737694236565,-500.0,0.00019172,2]
[350210812,1737694236574,-500.0,0.00019172,2]
[350210813,1737694236583,-500.0,0.00019172,2]
[350210814,1737694236592,-500.0,0.00019172,2]
[350210815,1737694236601,-500.0,0.00019172,2]
[350210816,1737694236610,-500.0,0.00019172,2]
[350210817,1737694236620,-500.0,0.00019172,2]
[350210818,1737694236629,-500.0,0.00019172,2]
[350210819,1737694236638,-500.0,0.00019172,2]
[350210820,1737694236647,-500.0,0.00019172,2]
[350210821,1737694236656,-500.0,0.00019172,2]
[350210822,1737694236665,-500.0,0.00019172,2]
[350210823,1737694236674,-500.0,0.00019172,2]
[350210824,1737694236683,-602.55,0.00019172,2]
[350210825,1737694236693,-540.74,0.00019172,2]
[350210826,1737694236702,-1000.0,0.00019172,30]
[350210827,1737694236711,-500.0,0.00019172,2]
[350210828,1737694236720,-500.0,0.00019172,2]
[350210829,1737694236729,-500.0,0.00019172,2]
[350210830,1737694236739,-500.0,0.00019172,2]
[350210831,1737694236748,-500.0,0.00019172,2]
[350210832,1737694236758,-441.2634368,0.00019172,2]
[350210833,1737694236768,-500.0,0.00019172,2]
[350210834,1737694236777,-500.0,0.00019172,2]
[350210835,1737694236787,-500.0,0.00019172,2]
[350210836,1737694236796,-500.0,0.00019172,2]
[350210837,1737694236805,-500.0,0.00019172,2]
[350210838,1737694236815,-485.74158162,0.00019172,2]
[350210839,1737694236825,-500.0,0.00019172,2]
[350210840,1737694236834,-500.0,0.00019172,2]
[350210841,1737694236843,-500.0,0.00019172,2]
[350210842,1737694236852,-500.13,0.00019172,2]
[350210843,1737694236862,-500.0,0.00019172,2]
[350210844,1737694236871,-500.0,0.00019172,2]
[350210845,1737694236880,-500.0,0.00019172,2]
[350210846,1737694236890,-500.0,0.00019172,2]
[350210847,1737694236899,-500.0,0.00019172,2]
[350210848,1737694236908,-500.0,0.00019172,2]
[350210849,1737694236917,-500.0,0.00019172,2]
[350210850,1737694236927,-500.0,0.00019172,2]
[350210851,1737694236937,-500.0,0.00019172,2]
[350210852,1737694236948,-500.0,0.00019172,2]
[350210853,1737694236958,-604.06,0.00019172,2]
[350210854,1737694236967,-500.0,0.00019172,2]
[350210855,1737694236977,-500.0,0.00019172,2]